[Event "*** Titled Tuesday Blitz"]
[Site "Chess.com"]
[Date "2020.02.04"]
[Round "3"]
[White "MikeSailer"]
[Black "Me_ch_an"]
[Result "0-1"]
[WhiteElo "2078"]
[BlackElo "2344"]
[TimeControl "180+2"]
[EndTime "9:38:48 PST"]
[Termination "Me_ch_an won by resignation"]

1. Nf3 {[%clk 0:03:01.9]} 1... c5 {[%clk 0:02:58.5]} 2. b3 {[%clk 0:03:02.5]}
2... Nc6 {[%clk 0:02:53.1]} 3. Bb2 {[%clk 0:03:03.8]} 3... d6 {[%clk 0:02:53]}
4. e3 {[%clk 0:03:05.2]} 4... e5 {[%clk 0:02:53.1]} 5. Be2 {[%clk 0:03:05.4]}
5... g6 {[%clk 0:02:53.5]} 6. O-O {[%clk 0:03:05.8]} 6... Bg7 {[%clk 0:02:54.7]}
7. c4 {[%clk 0:03:06.3]} 7... Nge7 {[%clk 0:02:55.6]} 8. Nc3 {[%clk 0:03:07.1]}
8... h6 {[%clk 0:02:57]} 9. Nd5 {[%clk 0:03:07.8]} 9... Be6 {[%clk 0:02:56.8]}
10. Nxe7 {[%clk 0:03:07.3]} 10... Qxe7 {[%clk 0:02:56.9]} 11. d4 {[%clk
0:03:02.1]} 11... cxd4 {[%clk 0:02:54.4]} 12. exd4 {[%clk 0:03:02.7]} 12... e4
{[%clk 0:02:55.5]} 13. Ne1 {[%clk 0:02:56.1]} 13... d5 {[%clk 0:02:41.8]} 14.
Nc2 {[%clk 0:02:47.2]} 14... O-O {[%clk 0:02:39.4]} 15. Ba3 {[%clk 0:02:48]}
15... Qg5 {[%clk 0:02:35.7]} 16. Bxf8 {[%clk 0:02:48.3]} 16... Rxf8 {[%clk
0:02:37.2]} 17. Re1 {[%clk 0:02:26]} 17... Rd8 {[%clk 0:02:34.1]} 18. cxd5
{[%clk 0:01:57.8]} 18... Bxd5 {[%clk 0:02:34.3]} 19. Bc4 {[%clk 0:01:54.5]}
19... Nxd4 {[%clk 0:02:26.6]} 20. Nxd4 {[%clk 0:01:45.5]} 20... Bxc4 {[%clk
0:02:26.2]} 21. bxc4 {[%clk 0:01:10.3]} 21... Bxd4 {[%clk 0:02:26.3]} 22. Qe2
{[%clk 0:00:33.7]} 22... Bxa1 {[%clk 0:02:26]} 23. Rxa1 {[%clk 0:00:34.4]} 23...
Qf4 {[%clk 0:02:11.9]} 24. Rd1 {[%clk 0:00:19.4]} 24... Rxd1+ {[%clk 0:02:04.8]}
25. Qxd1 {[%clk 0:00:20.4]} 25... e3 {[%clk 0:02:05.6]} 26. fxe3 {[%clk
0:00:19.2]} 26... Qxe3+ {[%clk 0:02:07.5]} 27. Kh1 {[%clk 0:00:19.6]} 27... Qf2
{[%clk 0:02:00]} 28. Qb1 {[%clk 0:00:16]} 28... b6 {[%clk 0:01:59]} 29. h3
{[%clk 0:00:17.3]} 29... h5 {[%clk 0:01:59.2]} 30. Qb3 {[%clk 0:00:12.7]} 30...
h4 {[%clk 0:01:57.1]} 31. a4 {[%clk 0:00:13]} 31... g5 {[%clk 0:01:54.2]} 32.
Qb5 {[%clk 0:00:10.9]} 32... Qe1+ {[%clk 0:01:51.8]} 33. Kh2 {[%clk 0:00:11.1]}
33... Qg3+ {[%clk 0:01:52.7]} 34. Kh1 {[%clk 0:00:12.5]} 34... Kg7 {[%clk
0:01:53.1]} 35. Qd5 {[%clk 0:00:11.9]} 35... Kg6 {[%clk 0:01:43.1]} 36. Qe4+
{[%clk 0:00:12.3]} 36... Kg7 {[%clk 0:01:38.3]} 37. Qd4+ {[%clk 0:00:12.2]}
37... Kg8 {[%clk 0:01:29.2]} 38. Qd8+ {[%clk 0:00:12.9]} 38... Kh7 {[%clk
0:01:30]} 39. Qd5 {[%clk 0:00:11.7]} 39... Qe1+ {[%clk 0:01:27.6]} 40. Kh2
{[%clk 0:00:13]} 40... Kg6 {[%clk 0:01:23.4]} 41. Qd3+ {[%clk 0:00:09.4]} 41...
Kg7 {[%clk 0:01:20.4]} 42. Qd4+ {[%clk 0:00:09.8]} 42... Kg6 {[%clk 0:01:15.1]}
43. Qd3+ {[%clk 0:00:10.8]} 43... Kf6 {[%clk 0:01:10.9]} 44. Qd6+ {[%clk
0:00:09.7]} 44... Qe6 {[%clk 0:01:11.3]} 45. Qd8+ {[%clk 0:00:10.8]} 45... Qe7
{[%clk 0:01:01.7]} 46. Qh8+ {[%clk 0:00:10.7]} 46... Kf5 {[%clk 0:00:59.1]} 47.
Qh7+ {[%clk 0:00:11.4]} 47... Kf4 {[%clk 0:00:59.7]} 48. Qd3 {[%clk 0:00:10.4]}
48... Ke5 {[%clk 0:00:44.4]} 49. Qe3+ {[%clk 0:00:09.2]} 49... Kf6 {[%clk
0:00:44.5]} 50. Qf3+ {[%clk 0:00:08.8]} 50... Kg6 {[%clk 0:00:45.3]} 51. Qd3+
{[%clk 0:00:09.7]} 51... f5 {[%clk 0:00:46.2]} 52. Qd5 {[%clk 0:00:09.8]} 52...
Kf6 {[%clk 0:00:41.2]} 53. Kh1 {[%clk 0:00:08.8]} 53... Qe1+ {[%clk 0:00:40.6]}
54. Kh2 {[%clk 0:00:10.1]} 54... Qe5+ {[%clk 0:00:41.7]} 55. Qxe5+ {[%clk
0:00:10.2]} 55... Kxe5 {[%clk 0:00:43.6]} 56. g3 {[%clk 0:00:11]} 56... hxg3+
{[%clk 0:00:42.9]} 57. Kxg3 {[%clk 0:00:12.3]} 57... Kd4 {[%clk 0:00:44.2]} 58.
h4 {[%clk 0:00:13.7]} 58... gxh4+ {[%clk 0:00:45.3]} 0-1

[Event "*** Titled Tuesday Blitz"]
[Site "Chess.com"]
[Date "2020.02.04"]
[Round "3"]
[White "GukeshDommaraju"]
[Black "Hadza_3"]
[Result "1-0"]
[WhiteElo "2642"]
[BlackElo "2404"]
[TimeControl "180+2"]
[EndTime "9:38:51 PST"]
[Termination "GukeshDommaraju won by resignation"]

1. c4 {[%clk 0:03:01.4]} 1... e5 {[%clk 0:03:00.9]} 2. g3 {[%clk 0:03:00.4]}
2... Nc6 {[%clk 0:03:02.3]} 3. Bg2 {[%clk 0:03:00.9]} 3... Bc5 {[%clk
0:03:04.2]} 4. Nc3 {[%clk 0:03:00.3]} 4... d6 {[%clk 0:03:06.1]} 5. e3 {[%clk
0:03:00.9]} 5... a6 {[%clk 0:03:07.7]} 6. Nge2 {[%clk 0:03:01.6]} 6... Ba7
{[%clk 0:03:09.6]} 7. d4 {[%clk 0:02:58.4]} 7... h5 {[%clk 0:03:08.9]} 8. h3
{[%clk 0:02:58.3]} 8... h4 {[%clk 0:02:57.4]} 9. g4 {[%clk 0:02:58.8]} 9... f5
{[%clk 0:02:58.4]} 10. gxf5 {[%clk 0:02:31.3]} 10... Bxf5 {[%clk 0:03:00.3]} 11.
Qb3 {[%clk 0:02:25.8]} 11... Qc8 {[%clk 0:02:48.7]} 12. d5 {[%clk 0:02:13.8]}
12... Nce7 {[%clk 0:02:44.3]} 13. e4 {[%clk 0:02:13.1]} 13... Bd7 {[%clk
0:02:41.3]} 14. f4 {[%clk 0:02:09.7]} 14... exf4 {[%clk 0:02:38.2]} 15. Bxf4
{[%clk 0:02:09.4]} 15... Nf6 {[%clk 0:02:36]} 16. e5 {[%clk 0:02:08.9]} 16...
dxe5 {[%clk 0:02:31.7]} 17. Bxe5 {[%clk 0:02:08.4]} 17... Nf5 {[%clk 0:02:32.9]}
18. Bxf6 {[%clk 0:01:51.9]} 18... Ne3 {[%clk 0:02:03.5]} 19. Bf3 {[%clk
0:01:09.8]} 19... gxf6 {[%clk 0:02:01.9]} 20. Ne4 {[%clk 0:00:56.5]} 20... Bxh3
{[%clk 0:01:10.7]} 21. c5 {[%clk 0:00:49.7]} 21... Ng2+ {[%clk 0:01:01.7]} 22.
Kd2 {[%clk 0:00:33.4]} 22... Qf5 {[%clk 0:00:57.4]} 23. Rxh3 {[%clk 0:00:32.8]}
23... Nf4 {[%clk 0:00:21.9]} 24. Nxf4 {[%clk 0:00:32.4]} 24... Qxf4+ {[%clk
0:00:23.8]} 25. Qe3 {[%clk 0:00:29.5]} 25... Qxe3+ {[%clk 0:00:25.1]} 26. Kxe3
{[%clk 0:00:30.1]} 26... f5 {[%clk 0:00:27]} 27. Nc3 {[%clk 0:00:21.6]} 27...
Bxc5+ {[%clk 0:00:27.6]} 28. Kd3 {[%clk 0:00:22.1]} 28... O-O-O {[%clk
0:00:28.4]} 29. Re1 {[%clk 0:00:20]} 29... Bd6 {[%clk 0:00:29.1]} 30. Re6 {[%clk
0:00:18.3]} 30... Rdg8 {[%clk 0:00:27.9]} 31. Ne2 {[%clk 0:00:17.9]} 31... Rd8
{[%clk 0:00:13.4]} 32. Nd4 {[%clk 0:00:17]} 32... f4 {[%clk 0:00:10.2]} 33. Rf6
{[%clk 0:00:15.7]} 33... Rdg8 {[%clk 0:00:10.2]} 34. Nf5 {[%clk 0:00:14]} 34...
Be5 {[%clk 0:00:10.7]} 35. Ne7+ {[%clk 0:00:14.9]} 35... Kd7 {[%clk 0:00:09.6]}
36. Nxg8 {[%clk 0:00:16.1]} 36... Rxg8 {[%clk 0:00:10.8]} 37. Rf7+ {[%clk
0:00:16.5]} 37... Ke8 {[%clk 0:00:12.1]} 38. Rh7 {[%clk 0:00:16.6]} 38... Bxb2
{[%clk 0:00:12.2]} 39. Rxc7 {[%clk 0:00:16.4]} 39... Rg3 {[%clk 0:00:13.3]} 40.
Rxg3 {[%clk 0:00:17]} 40... fxg3 {[%clk 0:00:14.1]} 41. Bg2 {[%clk 0:00:17.7]}
41... Be5 {[%clk 0:00:14.8]} 42. Rxb7 {[%clk 0:00:18]} 1-0

[Event "*** Titled Tuesday Blitz"]
[Site "Chess.com"]
[Date "2020.02.04"]
[Round "3"]
[White "crescentmoon2411"]
[Black "Mr_Sinigami"]
[Result "1-0"]
[WhiteElo "3002"]
[BlackElo "2720"]
[TimeControl "180+2"]
[EndTime "9:38:52 PST"]
[Termination "crescentmoon2411 won by resignation"]

1. d4 {[%clk 0:02:33.7]} 1... Nf6 {[%clk 0:02:59.6]} 2. Nf3 {[%clk 0:02:34.4]}
2... g6 {[%clk 0:03:00.7]} 3. Bf4 {[%clk 0:02:34.5]} 3... Bg7 {[%clk 0:03:01.2]}
4. e3 {[%clk 0:02:35.8]} 4... d6 {[%clk 0:03:02.2]} 5. h3 {[%clk 0:02:36.2]}
5... O-O {[%clk 0:03:03.2]} 6. Be2 {[%clk 0:02:36.8]} 6... b6 {[%clk 0:03:04.3]}
7. O-O {[%clk 0:02:37.2]} 7... Bb7 {[%clk 0:03:05.9]} 8. a4 {[%clk 0:02:38.1]}
8... a6 {[%clk 0:03:06.2]} 9. c4 {[%clk 0:02:37.8]} 9... Nbd7 {[%clk 0:03:05.9]}
10. Nc3 {[%clk 0:02:38.6]} 10... c5 {[%clk 0:03:01.4]} 11. d5 {[%clk 0:02:39.2]}
11... Qc7 {[%clk 0:02:51.4]} 12. Bh2 {[%clk 0:02:36.5]} 12... Rfe8 {[%clk
0:02:43.7]} 13. Qd2 {[%clk 0:02:29.9]} 13... Rad8 {[%clk 0:02:42.2]} 14. e4
{[%clk 0:02:28]} 14... Ne5 {[%clk 0:02:39.4]} 15. Nxe5 {[%clk 0:02:27.2]} 15...
dxe5 {[%clk 0:02:41.3]} 16. a5 {[%clk 0:02:22.4]} 16... bxa5 {[%clk 0:02:34.7]}
17. Bd3 {[%clk 0:02:20.4]} 17... Rb8 {[%clk 0:02:00.2]} 18. Nd1 {[%clk
0:02:14.5]} 18... Nh5 {[%clk 0:01:51.8]} 19. Qxa5 {[%clk 0:02:14.3]} 19... Qd6
{[%clk 0:01:51]} 20. Re1 {[%clk 0:02:07.8]} 20... Nf4 {[%clk 0:01:49.8]} 21. Bf1
{[%clk 0:02:08.6]} 21... Bc8 {[%clk 0:01:50.2]} 22. Ra2 {[%clk 0:01:50.2]} 22...
h5 {[%clk 0:01:40.9]} 23. Nc3 {[%clk 0:01:50.1]} 23... Bd7 {[%clk 0:01:33.2]}
24. Rb1 {[%clk 0:01:30.7]} 24... Rb6 {[%clk 0:01:25.4]} 25. b4 {[%clk
0:01:28.2]} 25... Rxb4 {[%clk 0:01:00.6]} 26. Rxb4 {[%clk 0:01:28.5]} 26... cxb4
{[%clk 0:01:02.5]} 27. c5 {[%clk 0:01:30.2]} 27... Qf6 {[%clk 0:01:02.3]} 28.
Qxb4 {[%clk 0:01:28.8]} 28... Qg5 {[%clk 0:01:03.5]} 29. Kh1 {[%clk 0:01:20.7]}
29... Bc8 {[%clk 0:00:58.3]} 30. c6 {[%clk 0:01:16.8]} 30... Bf8 {[%clk
0:00:33]} 31. Qb2 {[%clk 0:00:51.1]} 31... h4 {[%clk 0:00:32.4]} 32. Qd2 {[%clk
0:00:47.7]} 32... Qf6 {[%clk 0:00:32.3]} 33. Bxa6 {[%clk 0:00:43.5]} 33... Bxa6
{[%clk 0:00:32.9]} 34. Rxa6 {[%clk 0:00:45.4]} 34... Bh6 {[%clk 0:00:28]} 35.
Bxf4 {[%clk 0:00:40.6]} 35... Bxf4 {[%clk 0:00:22.9]} 36. Qe2 {[%clk 0:00:33.4]}
36... Qd6 {[%clk 0:00:22.5]} 37. Ra1 {[%clk 0:00:30.9]} 37... Qc5 {[%clk
0:00:22.4]} 38. Qf3 {[%clk 0:00:19]} 38... Rb8 {[%clk 0:00:20.3]} 39. Ne2 {[%clk
0:00:18.6]} 39... Bg5 {[%clk 0:00:18.3]} 40. Rf1 {[%clk 0:00:18.9]} 40... Kg7
{[%clk 0:00:18.3]} 41. Qc3 {[%clk 0:00:18.4]} 41... Qd6 {[%clk 0:00:15.7]} 42.
Ng1 {[%clk 0:00:19.5]} 42... Bf6 {[%clk 0:00:15.7]} 43. Nf3 {[%clk 0:00:20.2]}
43... e6 {[%clk 0:00:14.3]} 44. Rd1 {[%clk 0:00:20.3]} 44... Rc8 {[%clk
0:00:14]} 45. Qc4 {[%clk 0:00:21]} 45... exd5 {[%clk 0:00:14.6]} 46. exd5 {[%clk
0:00:22.9]} 46... Rb8 {[%clk 0:00:14.7]} 47. Nd2 {[%clk 0:00:23.4]} 47... Rb4
{[%clk 0:00:15.2]} 48. Ne4 {[%clk 0:00:24.4]} 48... Rxc4 {[%clk 0:00:11.3]} 49.
Nxd6 {[%clk 0:00:25.1]} 49... Rc2 {[%clk 0:00:11.4]} 50. Ne8+ {[%clk 0:00:26.5]}
1-0

[Event "*** Titled Tuesday Blitz"]
[Site "Chess.com"]
[Date "2020.02.04"]
[Round "3"]
[White "dangerousattack1st"]
[Black "KRASAVCHIK2002"]
[Result "0-1"]
[WhiteElo "2804"]
[BlackElo "2518"]
[TimeControl "180+2"]
[EndTime "9:39:01 PST"]
[Termination "KRASAVCHIK2002 won by checkmate"]

1. e4 {[%clk 0:03:01.9]} 1... e5 {[%clk 0:03:00.7]} 2. Nf3 {[%clk 0:03:03.1]}
2... Nc6 {[%clk 0:02:55.7]} 3. Bc4 {[%clk 0:03:04.3]} 3... Nf6 {[%clk
0:02:54.9]} 4. d3 {[%clk 0:03:02.9]} 4... h6 {[%clk 0:02:54.8]} 5. O-O {[%clk
0:03:04]} 5... d6 {[%clk 0:02:55.4]} 6. c3 {[%clk 0:03:04.1]} 6... g5 {[%clk
0:02:54.6]} 7. d4 {[%clk 0:03:01]} 7... g4 {[%clk 0:02:40.5]} 8. dxe5 {[%clk
0:02:37.6]} 8... gxf3 {[%clk 0:01:32.7]} 9. exf6 {[%clk 0:02:38.4]} 9... Qxf6
{[%clk 0:01:30.1]} 10. Qxf3 {[%clk 0:02:00.1]} 10... Qxf3 {[%clk 0:01:25.9]} 11.
gxf3 {[%clk 0:02:02]} 11... Bh3 {[%clk 0:01:25.9]} 12. Kh1 {[%clk 0:01:27.6]}
12... Bxf1 {[%clk 0:01:23.1]} 13. Bxf1 {[%clk 0:01:29.5]} 13... h5 {[%clk
0:01:21.9]} 14. Na3 {[%clk 0:01:27]} 14... O-O-O {[%clk 0:01:07.4]} 15. Bg5
{[%clk 0:01:25.2]} 15... Be7 {[%clk 0:01:08.6]} 16. Bh3+ {[%clk 0:01:23.6]}
16... Kb8 {[%clk 0:01:09.2]} 17. Be3 {[%clk 0:01:24.8]} 17... Ne5 {[%clk
0:01:08.2]} 18. f4 {[%clk 0:01:23.9]} 18... Ng4 {[%clk 0:01:09.4]} 19. Kg2
{[%clk 0:01:16.4]} 19... Rhg8 {[%clk 0:01:06.7]} 20. Kf3 {[%clk 0:01:14.3]}
20... d5 {[%clk 0:01:04.6]} 21. exd5 {[%clk 0:01:10.1]} 21... Rxd5 {[%clk
0:01:03.2]} 22. Ke2 {[%clk 0:00:59.7]} 22... Bxa3 {[%clk 0:00:57.2]} 23. bxa3
{[%clk 0:00:57.3]} 23... Nxe3 {[%clk 0:00:59.1]} 24. fxe3 {[%clk 0:00:57.2]}
24... Rgd8 {[%clk 0:00:54.2]} 25. Rg1 {[%clk 0:00:53.5]} 25... Rd2+ {[%clk
0:00:51.7]} 26. Kf3 {[%clk 0:00:54.7]} 26... Rxh2 {[%clk 0:00:53.6]} 27. Bf5
{[%clk 0:00:53.7]} 27... Rxa2 {[%clk 0:00:52.1]} 28. Rg7 {[%clk 0:00:54.9]}
28... Rxa3 {[%clk 0:00:51]} 29. c4 {[%clk 0:00:56.2]} 29... Re8 {[%clk 0:00:49]}
30. Be4 {[%clk 0:00:55]} 30... f5 {[%clk 0:00:48.1]} 31. Bxf5 {[%clk 0:00:54.4]}
31... Rexe3+ {[%clk 0:00:50]} 32. Kg2 {[%clk 0:00:54.9]} 32... a5 {[%clk
0:00:48.1]} 33. Rg8+ {[%clk 0:00:45.3]} 33... Ka7 {[%clk 0:00:47.7]} 34. Rg7
{[%clk 0:00:46.7]} 34... Ra2+ {[%clk 0:00:47]} 35. Kf1 {[%clk 0:00:47.6]} 35...
Rc3 {[%clk 0:00:42.7]} 36. Re7 {[%clk 0:00:39.6]} 36... Rc1+ {[%clk 0:00:36.9]}
37. Re1 {[%clk 0:00:40.7]} 37... Rxe1+ {[%clk 0:00:38.8]} 38. Kxe1 {[%clk
0:00:42.6]} 38... Ra4 {[%clk 0:00:36.5]} 39. Bd3 {[%clk 0:00:40.8]} 39... Kb6
{[%clk 0:00:29]} 40. f5 {[%clk 0:00:41.8]} 40... Kc6 {[%clk 0:00:29.1]} 41. f6
{[%clk 0:00:37.2]} 41... Kd7 {[%clk 0:00:30.1]} 42. Bf5+ {[%clk 0:00:32.3]}
42... Ke8 {[%clk 0:00:27.9]} 43. Be6 {[%clk 0:00:30.6]} 43... Kf8 {[%clk
0:00:24.3]} 44. Kd2 {[%clk 0:00:30.4]} 44... c6 {[%clk 0:00:24.5]} 45. Kc3
{[%clk 0:00:30.8]} 45... b5 {[%clk 0:00:24.4]} 46. c5 {[%clk 0:00:29.3]} 46...
Rf4 {[%clk 0:00:23.6]} 47. f7 {[%clk 0:00:29.1]} 47... Rxf7 {[%clk 0:00:24.8]}
48. Bxf7 {[%clk 0:00:22.8]} 48... Kxf7 {[%clk 0:00:26.7]} 49. Kd4 {[%clk
0:00:23]} 49... Ke6 {[%clk 0:00:28.6]} 50. Ke4 {[%clk 0:00:24.1]} 50... h4
{[%clk 0:00:30.5]} 51. Kf3 {[%clk 0:00:25.1]} 51... h3 {[%clk 0:00:32.4]} 52.
Kg3 {[%clk 0:00:26.6]} 52... Kd5 {[%clk 0:00:34.3]} 53. Kxh3 {[%clk 0:00:27.8]}
53... Kxc5 {[%clk 0:00:36.2]} 54. Kg4 {[%clk 0:00:29.7]} 54... Kc4 {[%clk
0:00:38.1]} 55. Kf3 {[%clk 0:00:31.6]} 55... Kc3 {[%clk 0:00:40]} 56. Ke2 {[%clk
0:00:33.5]} 56... a4 {[%clk 0:00:41.9]} 57. Kd1 {[%clk 0:00:34]} 57... Kb2
{[%clk 0:00:43.4]} 58. Kd2 {[%clk 0:00:35.3]} 58... a3 {[%clk 0:00:45.3]} 59.
Kd3 {[%clk 0:00:37.2]} 59... a2 {[%clk 0:00:47.2]} 60. Kd4 {[%clk 0:00:39.1]}
60... a1=Q {[%clk 0:00:49.1]} 61. Kc5 {[%clk 0:00:41]} 61... Qc1+ {[%clk
0:00:49]} 62. Kb4 {[%clk 0:00:42.9]} 62... Qc3# {[%clk 0:00:48.4]} 0-1

[Event "*** Titled Tuesday Blitz"]
[Site "Chess.com"]
[Date "2020.02.04"]
[Round "3"]
[White "kinga2008"]
[Black "WPWPWP-2015"]
[Result "0-1"]
[WhiteElo "1943"]
[BlackElo "2551"]
[TimeControl "180+2"]
[EndTime "9:39:03 PST"]
[Termination "WPWPWP-2015 won by resignation"]

1. e3 {[%clk 0:02:05.5]} 1... e5 {[%clk 0:02:56.5]} 2. Nf3 {[%clk 0:02:05.6]}
2... Nc6 {[%clk 0:02:56.2]} 3. d4 {[%clk 0:02:05]} 3... e4 {[%clk 0:02:52.2]} 4.
Nfd2 {[%clk 0:02:04.2]} 4... d5 {[%clk 0:02:52.7]} 5. c4 {[%clk 0:02:04.7]} 5...
Nf6 {[%clk 0:02:49.5]} 6. Nc3 {[%clk 0:02:05]} 6... dxc4 {[%clk 0:02:35.7]} 7.
Ndxe4 {[%clk 0:01:56.1]} 7... Nxe4 {[%clk 0:02:35]} 8. Nxe4 {[%clk 0:01:54.8]}
8... Bf5 {[%clk 0:02:35.2]} 9. Qf3 {[%clk 0:01:48.1]} 9... Be6 {[%clk
0:02:30.9]} 10. Nd2 {[%clk 0:01:39.8]} 10... Bb4 {[%clk 0:02:23.3]} 11. Be2
{[%clk 0:01:29.7]} 11... O-O {[%clk 0:02:20.8]} 12. O-O {[%clk 0:01:29.7]} 12...
c3 {[%clk 0:02:14.7]} 13. Ne4 {[%clk 0:01:21.2]} 13... Bd5 {[%clk 0:02:09.3]}
14. Qf4 {[%clk 0:01:03.8]} 14... f5 {[%clk 0:02:01.3]} 15. Ng5 {[%clk
0:00:28.9]} 15... h6 {[%clk 0:00:56.9]} 16. Nf3 {[%clk 0:00:23.2]} 16... Qe7
{[%clk 0:00:53.4]} 17. a3 {[%clk 0:00:08.1]} 17... Bd6 {[%clk 0:00:53.5]} 18.
Qh4 {[%clk 0:00:08.9]} 18... Rf6 {[%clk 0:00:46]} 19. Ne5 {[%clk 0:00:03.8]}
19... Nxe5 {[%clk 0:00:31]} 20. dxe5 {[%clk 0:00:04.2]} 20... Qxe5 {[%clk
0:00:27.9]} 21. f4 {[%clk 0:00:03.8]} 21... cxb2 {[%clk 0:00:21.4]} 22. fxe5
{[%clk 0:00:03.2]} 22... bxa1=Q {[%clk 0:00:20.6]} 23. exf6 {[%clk 0:00:04.5]}
23... Qxf6 {[%clk 0:00:21]} 24. Qxf6 {[%clk 0:00:05.5]} 24... gxf6 {[%clk
0:00:21.8]} 25. Rxf5 {[%clk 0:00:07]} 25... Be5 {[%clk 0:00:19.1]} 26. Bf3
{[%clk 0:00:05.4]} 26... Be6 {[%clk 0:00:18.8]} 27. Rh5 {[%clk 0:00:06.6]} 27...
Kg7 {[%clk 0:00:07.6]} 28. Bxb7 {[%clk 0:00:07.3]} 28... Rb8 {[%clk 0:00:08.3]}
29. Be4 {[%clk 0:00:08.4]} 29... Bg4 {[%clk 0:00:06]} 30. Rh4 {[%clk 0:00:08.5]}
30... f5 {[%clk 0:00:07.2]} 31. Bf3 {[%clk 0:00:06]} 31... Bf6 {[%clk
0:00:07.9]} 32. Bxg4 {[%clk 0:00:03.9]} 32... Bxh4 {[%clk 0:00:08.3]} 33. Bxf5
{[%clk 0:00:05.5]} 33... Kf6 {[%clk 0:00:09.4]} 34. Bc2 {[%clk 0:00:03.9]} 34...
Bg5 {[%clk 0:00:08.5]} 35. g3 {[%clk 0:00:04]} 35... Ke5 {[%clk 0:00:09]} 36. h4
{[%clk 0:00:04.9]} 36... Be7 {[%clk 0:00:08.8]} 37. a4 {[%clk 0:00:03.8]} 37...
Bd6 {[%clk 0:00:09.2]} 38. Bd2 {[%clk 0:00:03.6]} 38... Ke6 {[%clk 0:00:08.6]}
39. Kf2 {[%clk 0:00:03.1]} 39... Rb2 {[%clk 0:00:08.1]} 40. Be1 {[%clk
0:00:02.4]} 40... Rxc2+ {[%clk 0:00:08.8]} 41. Kf3 {[%clk 0:00:03.9]} 41... Ra2
{[%clk 0:00:08.9]} 42. a5 {[%clk 0:00:05.3]} 42... Ra4 {[%clk 0:00:09.1]} 43. e4
{[%clk 0:00:04.3]} 43... h5 {[%clk 0:00:09.4]} 44. Bd2 {[%clk 0:00:02.7]} 44...
Ra3+ {[%clk 0:00:08.5]} 45. Kf2 {[%clk 0:00:03]} 45... Bxg3+ {[%clk 0:00:08.5]}
46. Kg2 {[%clk 0:00:04.3]} 0-1

[Event "*** Titled Tuesday Blitz"]
[Site "Chess.com"]
[Date "2020.02.04"]
[Round "3"]
[White "Kostina_Nadezhda"]
[Black "przemekpiotrowski"]
[Result "0-1"]
[WhiteElo "2174"]
[BlackElo "2379"]
[TimeControl "180+2"]
[EndTime "9:39:05 PST"]
[Termination "przemekpiotrowski won by resignation"]

1. e4 {[%clk 0:02:30.8]} 1... c5 {[%clk 0:02:59.7]} 2. Nf3 {[%clk 0:02:30.7]}
2... Nc6 {[%clk 0:03:00.6]} 3. d4 {[%clk 0:02:26.3]} 3... cxd4 {[%clk
0:03:02.5]} 4. Nxd4 {[%clk 0:02:26]} 4... Nf6 {[%clk 0:03:04]} 5. Nc3 {[%clk
0:02:26.4]} 5... d6 {[%clk 0:03:05.6]} 6. g3 {[%clk 0:02:25.9]} 6... e5 {[%clk
0:03:06.6]} 7. Nde2 {[%clk 0:02:24.1]} 7... Bg4 {[%clk 0:03:00.6]} 8. Bg2 {[%clk
0:02:24.6]} 8... Qd7 {[%clk 0:03:02.2]} 9. Bg5 {[%clk 0:02:20.6]} 9... Nd4
{[%clk 0:02:57.1]} 10. h3 {[%clk 0:02:16.7]} 10... Bf3 {[%clk 0:02:53.4]} 11.
O-O {[%clk 0:02:10.7]} 11... Nxe2+ {[%clk 0:02:48.1]} 12. Nxe2 {[%clk 0:02:11]}
12... Bxg2 {[%clk 0:02:49.8]} 13. Kxg2 {[%clk 0:02:12.4]} 13... Nxe4 {[%clk
0:02:51.7]} 14. Be3 {[%clk 0:02:10.4]} 14... Be7 {[%clk 0:02:49.1]} 15. Kh2
{[%clk 0:02:09.3]} 15... O-O {[%clk 0:02:47]} 16. Qd3 {[%clk 0:01:54.9]} 16...
Nf6 {[%clk 0:02:40.6]} 17. Rad1 {[%clk 0:01:54.7]} 17... d5 {[%clk 0:02:41.8]}
18. Bg5 {[%clk 0:01:47.8]} 18... d4 {[%clk 0:02:41.8]} 19. f4 {[%clk 0:01:44.3]}
19... h6 {[%clk 0:02:32.4]} 20. fxe5 {[%clk 0:01:39.5]} 20... hxg5 {[%clk
0:02:14.5]} 21. exf6 {[%clk 0:01:40.3]} 21... Bxf6 {[%clk 0:02:16.4]} 22. Nxd4
{[%clk 0:01:40.7]} 22... Rad8 {[%clk 0:02:09.7]} 23. Nf5 {[%clk 0:01:33.2]}
23... Qe6 {[%clk 0:01:57.4]} 24. Qf3 {[%clk 0:01:29.2]} 24... Rxd1 {[%clk
0:01:50.2]} 25. Rxd1 {[%clk 0:01:29.5]} 25... Re8 {[%clk 0:01:47.1]} 26. Rd2
{[%clk 0:01:13]} 26... Bxb2 {[%clk 0:01:12.1]} 27. Qxb7 {[%clk 0:01:10.9]} 27...
Qxf5 {[%clk 0:01:07.9]} 28. Qxb2 {[%clk 0:01:11.4]} 28... Qf1 {[%clk 0:01:09.4]}
29. Qb7 {[%clk 0:01:05.1]} 29... Re1 {[%clk 0:00:55.1]} 30. Qg2 {[%clk 0:01:00]}
30... Qc4 {[%clk 0:00:56.2]} 31. Qf2 {[%clk 0:00:52.4]} 31... Rf1 {[%clk
0:00:53.6]} 32. Qe2 {[%clk 0:00:46.6]} 32... Qxe2+ {[%clk 0:00:47.8]} 33. Rxe2
{[%clk 0:00:47.9]} 33... Ra1 {[%clk 0:00:49.7]} 34. Re8+ {[%clk 0:00:47.5]}
34... Kh7 {[%clk 0:00:50]} 35. Re7 {[%clk 0:00:48.7]} 35... Rxa2 {[%clk
0:00:50.8]} 36. Rxf7 {[%clk 0:00:49.9]} 36... Rxc2+ {[%clk 0:00:52.3]} 37. Kg1
{[%clk 0:00:51.1]} 37... a5 {[%clk 0:00:52.6]} 38. Rf5 {[%clk 0:00:51.1]} 38...
a4 {[%clk 0:00:49.8]} 39. Ra5 {[%clk 0:00:46]} 39... Rc1+ {[%clk 0:00:40.6]} 40.
Kf2 {[%clk 0:00:46.4]} 40... Rc2+ {[%clk 0:00:42.5]} 41. Kf3 {[%clk 0:00:47.1]}
41... Rc3+ {[%clk 0:00:43]} 42. Kg4 {[%clk 0:00:47.4]} 42... a3 {[%clk
0:00:44.4]} 43. Ra6 {[%clk 0:00:46.3]} 43... g6 {[%clk 0:00:40.5]} 44. Ra7+
{[%clk 0:00:43.3]} 44... Kh6 {[%clk 0:00:41.6]} 45. Ra8 {[%clk 0:00:41.9]} 45...
Rb3 {[%clk 0:00:36]} 46. Ra7 {[%clk 0:00:40.6]} 46... Rb4+ {[%clk 0:00:31.8]}
47. Kf3 {[%clk 0:00:41]} 47... Rb3+ {[%clk 0:00:33.5]} 48. Kg4 {[%clk
0:00:42.2]} 48... Rc3 {[%clk 0:00:35.1]} 49. Ra8 {[%clk 0:00:42.5]} 49... Kg7
{[%clk 0:00:36.3]} 50. Ra6 {[%clk 0:00:43.1]} 50... Kf7 {[%clk 0:00:37.4]} 51.
Ra7+ {[%clk 0:00:40.4]} 51... Ke6 {[%clk 0:00:38.1]} 52. Ra6+ {[%clk 0:00:36.4]}
52... Kd5 {[%clk 0:00:39.2]} 53. Ra4 {[%clk 0:00:32.5]} 53... Rc4+ {[%clk
0:00:40]} 54. Rxc4 {[%clk 0:00:32.8]} 54... Kxc4 {[%clk 0:00:41.9]} 55. Kxg5
{[%clk 0:00:34.2]} 55... a2 {[%clk 0:00:42.6]} 56. Kxg6 {[%clk 0:00:35.3]} 56...
a1=Q {[%clk 0:00:44.5]} 57. h4 {[%clk 0:00:36.5]} 57... Qg1 {[%clk 0:00:45.4]}
58. h5 {[%clk 0:00:37]} 58... Qxg3+ {[%clk 0:00:46.6]} 59. Kh7 {[%clk
0:00:37.8]} 59... Qg5 {[%clk 0:00:42.5]} 60. h6 {[%clk 0:00:37.9]} 60... Kd5
{[%clk 0:00:43.4]} 61. Kh8 {[%clk 0:00:38.8]} 61... Qxh6+ {[%clk 0:00:44.6]} 0-1